bitfinex/quotes_BTCUSD_20250423
["timestamp","ask_amount","ask_price","bid_price","bid_amount"]
[1745385052418,0.10903149,93522.0,93521.0,0.66215876]
[1745385053680,0.10903149,93522.0,93521.0,0.66415876]
[1745385056982,0.0451,93533.0,93526.0,0.21384427]
[1745385057194,0.1160251,93527.0,93526.0,0.21384427]
[1745385058238,0.1160251,93527.0,93526.0,0.21484427]
[1745385059808,0.1090251,93527.0,93526.0,0.21484427]
[1745385063916,0.1090251,93527.0,93526.0,0.001]
[1745385064320,0.53738995,93527.0,93526.0,0.001]
[1745385064726,0.0953,93514.0,93491.0,0.01075606]
[1745385064923,0.0953,93514.0,93494.0,0.01069587]
[1745385064924,0.1972391,93510.0,93494.0,0.01069587]
[1745385065123,0.0486,93509.0,93500.0,4.659e-05]
[1745385065326,0.05507072,93509.0,93500.0,4.659e-05]
[1745385066223,0.05507072,93509.0,93487.0,0.2139328]
[1745385066418,0.0486,93507.0,93492.0,0.0106961]
[1745385066620,0.00618118,93506.0,93493.0,0.01069598]
[1745385066825,0.00618118,93506.0,93494.0,0.01069587]
[1745385067051,0.00618118,93506.0,93493.0,0.01069598]
[1745385067448,0.04778118,93507.0,93493.0,0.01069598]
[1745385067622,0.00514774,93505.0,93493.0,0.01069598]
[1745385067824,0.00514774,93505.0,93493.0,0.01169598]
[1745385068028,0.00514774,93505.0,93495.0,0.01069575]
[1745385068227,0.00514774,93505.0,93493.0,0.001]
[1745385069112,0.049,93504.0,93493.0,0.001]
[1745385069314,0.11548,93503.0,93493.0,0.001]
[1745385069481,0.11548,93503.0,93490.0,4.66e-05]
[1745385069482,0.12062126,93503.0,93490.0,4.66e-05]
[1745385069931,0.12062126,93503.0,93493.0,0.001]
[1745385070137,0.12062126,93503.0,93490.0,0.01074293]
[1745385070338,0.12062126,93503.0,93490.0,4.66e-05]
[1745385070540,0.12162126,93503.0,93490.0,4.66e-05]
[1745385070713,0.12062126,93503.0,93490.0,4.66e-05]
[1745385070935,0.12162126,93503.0,93490.0,4.66e-05]
[1745385071157,0.048,93502.0,93490.0,4.66e-05]
[1745385071602,0.0050667,93501.0,93490.0,4.66e-05]
[1745385071805,0.048,93499.0,93490.0,4.66e-05]
[1745385072002,0.00505697,93498.0,93490.0,4.66e-05]
[1745385073271,0.00605697,93498.0,93490.0,4.66e-05]
[1745385074088,0.00705697,93498.0,93490.0,4.66e-05]
[1745385075110,0.33206485,93497.0,93490.0,4.66e-05]
[1745385075316,0.33011858,93497.0,93490.0,4.66e-05]
[1745385077043,0.097,93496.0,93490.0,4.66e-05]
[1745385077263,0.048,93495.0,93490.0,4.66e-05]
[1745385077539,0.4333679,93494.0,93490.0,4.66e-05]
[1745385077751,0.048,93493.0,93490.0,4.66e-05]
[1745385077962,0.048,93491.0,93490.0,4.66e-05]
[1745385078177,0.1708439,93491.0,93490.0,4.66e-05]
[1745385078417,0.1708439,93491.0,93472.0,0.0008496]
[1745385078418,0.097,93474.0,93472.0,0.0008496]
[1745385078683,0.91598215,93473.0,93472.0,0.00092442]
[1745385078937,0.91598215,93473.0,93465.0,0.0008496]
[1745385078938,0.26198155,93466.0,93465.0,0.0008496]
[1745385079146,0.15630305,93466.0,93465.0,0.0008496]
[1745385079358,0.16894024,93466.0,93465.0,0.0008496]
[1745385080256,0.28446024,93466.0,93465.0,0.0008496]
[1745385080473,0.17294024,93466.0,93465.0,0.0008496]
[1745385080685,0.28846024,93466.0,93465.0,0.0008496]
[1745385080898,0.29546024,93466.0,93465.0,0.0008496]
[1745385082906,0.28846024,93466.0,93465.0,0.0008496]
[1745385083768,0.60801934,93466.0,93465.0,0.0008496]
[1745385084146,0.60801934,93466.0,93452.0,0.0008502]
[1745385084147,0.213993,93461.0,93452.0,0.0008502]
[1745385084357,0.3368369,93461.0,93452.0,0.0008502]
[1745385084568,0.34139053,93461.0,93452.0,0.0008502]
[1745385084978,0.33240095,93455.0,93452.0,0.0008502]
[1745385085189,0.01454085,93454.0,93429.0,0.21406516]
[1745385085423,0.01454085,93452.0,93433.0,9.462e-05]
[1745385085635,0.10830305,93451.0,93433.0,9.462e-05]
[1745385085848,0.11282423,93451.0,93433.0,9.462e-05]
[1745385086063,0.0484,93450.0,93433.0,0.01079747]
[1745385086288,0.00452118,93451.0,93439.0,0.01070216]
[1745385086514,0.11452,93449.0,93439.0,0.01070216]
[1745385086732,0.00451793,93450.0,93448.0,0.21402157]
[1745385086733,0.32237803,93450.0,93448.0,0.21402157]
[1745385086949,0.3178601,93450.0,93448.0,0.21402157]
[1745385087135,0.3178601,93450.0,93449.0,0.10830305]
[1745385087380,0.3178601,93450.0,93449.0,0.44830305]
[1745385088100,0.3178601,93450.0,93449.0,0.34]
[1745385088322,0.32234542,93450.0,93449.0,0.34]
[1745385089369,0.32534542,93450.0,93449.0,0.34]
[1745385089777,0.32634542,93450.0,93449.0,0.34]
[1745385090830,0.31634542,93450.0,93449.0,0.34]
[1745385092159,0.31534542,93450.0,93449.0,0.34]
[1745385092371,0.31534542,93450.0,93449.0,0.341]
[1745385098459,0.30834542,93450.0,93449.0,0.341]
[1745385099998,0.31040194,93450.0,93449.0,0.341]
[1745385106120,0.30340194,93450.0,93449.0,0.341]
[1745385106647,0.30340194,93450.0,93449.0,0.44930305]
[1745385106823,0.30340194,93450.0,93449.0,0.49550305]
[1745385110228,0.00654184,93450.0,93449.0,0.49550305]
[1745385110423,0.11544,93459.0,93449.0,0.49550305]
[1745385110424,0.11544,93459.0,93456.0,0.01070022]
[1745385110635,0.00438254,93458.0,93456.0,0.01070022]
[1745385111288,0.11544,93459.0,93456.0,0.01070022]
[1745385112144,0.11744,93459.0,93456.0,0.01070022]
[1745385112353,0.00438254,93458.0,93457.0,0.21400216]
[1745385113202,0.00438254,93458.0,93457.0,0.70970521]
[1745385113619,0.002,93459.0,93458.0,0.34]
[1745385113752,0.11544,93472.0,93469.0,0.01069873]
[1745385114167,0.11284731,93472.0,93469.0,0.01069873]
[1745385114867,0.11384731,93472.0,93469.0,0.01069873]
[1745385115239,0.11384731,93472.0,93470.0,0.21397239]
[1745385115891,0.001,93472.0,93470.0,0.21397239]
[1745385116101,0.001,93472.0,93471.0,0.10830305]
[1745385116303,0.001,93472.0,93471.0,0.20420305]
[1745385116932,0.2968601,93491.0,93471.0,0.20420305]
[1745385116933,0.2968601,93491.0,93487.0,0.21393348]
[1745385117143,0.00056508,93488.0,93486.0,0.21393577]
[1745385117354,0.00056508,93488.0,93487.0,0.3864]
[1745385118194,0.00056508,93488.0,93487.0,0.34]
[1745385118828,0.00256508,93488.0,93487.0,0.34]
[1745385119039,0.00456508,93488.0,93487.0,0.34]
[1745385119247,0.00456508,93488.0,93479.0,0.21395179]
[1745385119456,0.00456508,93488.0,93487.0,0.002]
[1745385120079,0.00256508,93488.0,93487.0,0.002]
[1745385120294,0.00256508,93488.0,93487.0,0.004]
[1745385120680,0.00256508,93488.0,93487.0,0.002]
[1745385120912,0.00056508,93488.0,93480.0,0.01069747]
[1745385121144,0.00156508,93488.0,93480.0,0.01369747]
[1745385121341,0.00156508,93488.0,93481.0,0.01069736]
[1745385121543,0.00156508,93488.0,93480.0,0.01369747]
[1745385121544,0.00156508,93488.0,93480.0,0.003]
[1745385121736,0.00156508,93488.0,93487.0,0.001]
[1745385121882,0.29242518,93492.0,93487.0,0.001]
[1745385122095,0.2953601,93491.0,93479.0,0.01069758]
[1745385122318,0.2953601,93491.0,93482.0,0.01069724]
[1745385123235,0.2953601,93491.0,93481.0,0.01069736]
[1745385123444,0.2953601,93491.0,93483.0,0.01069713]
[1745385123849,0.2953601,93491.0,93487.0,0.001]
[1745385125071,0.2953601,93491.0,93483.0,0.01169713]
[1745385125513,0.2953601,93491.0,93487.0,0.001]
[1745385126623,0.16699938,93490.0,93487.0,0.001]
[1745385126818,0.45316315,93490.0,93487.0,0.001]
[1745385127954,0.45316315,93490.0,93471.0,0.0106985]
[1745385128324,0.45922792,93490.0,93470.0,0.01069861]
[1745385128552,0.45922792,93490.0,93471.0,0.0106985]
[1745385128976,0.45522792,93490.0,93471.0,0.0106985]
[1745385129196,0.45522792,93490.0,93470.0,0.01069861]
[1745385129410,0.45522792,93490.0,93471.0,0.0106985]
[1745385129621,0.44822792,93490.0,93471.0,0.0106985]
[1745385130076,0.44622792,93490.0,93473.0,0.01069827]
[1745385130302,0.11532,93489.0,93482.0,0.01069724]
[1745385130592,0.29692487,93490.0,93480.0,0.01069747]
[1745385130863,0.4121801,93488.0,93480.0,0.01069747]
[1745385131108,0.4121801,93488.0,93477.0,0.2246537]
[1745385131109,0.2968601,93488.0,93475.0,0.01069804]
[1745385131320,0.2968601,93488.0,93478.0,0.0106977]
[1745385131321,0.11532,93487.0,93478.0,0.0106977]
[1745385131765,0.11532,93487.0,93473.0,0.001]
[1745385131766,0.11532,93487.0,93468.0,0.01069884]
[1745385131969,0.2968601,93486.0,93465.0,0.01069919]
[1745385132188,0.048,93485.0,93467.0,0.01069896]
[1745385132426,0.048,93485.0,93468.0,0.01069884]
[1745385132620,0.048,93485.0,93470.0,0.01069861]
[1745385132827,0.048,93485.0,93471.0,0.0106985]
[1745385133248,0.11532,93484.0,93471.0,0.0106985]
[1745385134092,0.11532,93483.0,93482.0,0.01069724]
[1745385134507,0.2968601,93486.0,93483.0,0.22463929]
[1745385134675,0.11532,93484.0,93483.0,0.22463929]
[1745385136987,0.11732,93484.0,93483.0,0.22463929]
[1745385137244,0.11832,93484.0,93483.0,0.22463929]
[1745385137474,0.11232,93484.0,93483.0,0.22463929]
[1745385137703,0.10932,93484.0,93483.0,0.22463929]
[1745385138208,0.11232,93484.0,93483.0,0.22463929]
[1745385145048,0.10532,93484.0,93483.0,0.22463929]
[1745385146672,0.10532,93484.0,93464.0,0.0106993]
[1745385146673,0.0486,93483.0,93464.0,0.0106993]
[1745385146899,0.15690305,93483.0,93470.0,0.01069861]
[1745385147127,0.15690305,93483.0,93469.0,0.01069873]
[1745385147340,0.15690305,93483.0,93470.0,0.01069861]
[1745385147552,0.15690305,93483.0,93469.0,0.01069873]
[1745385147771,0.15690305,93483.0,93469.0,0.22467341]
[1745385147990,0.10232,93484.0,93469.0,0.01069873]
[1745385148222,0.10232,93484.0,93470.0,0.01069861]
[1745385148429,0.10232,93484.0,93469.0,0.01069873]
[1745385148665,0.10132,93484.0,93469.0,0.01069873]
[1745385149107,0.10132,93484.0,93470.0,0.01169861]
[1745385149323,0.10132,93484.0,93468.0,0.01069884]
[1745385149586,0.10132,93484.0,93469.0,0.001]
[1745385149824,0.10132,93484.0,93470.0,0.001]
[1745385150274,0.10132,93484.0,93469.0,0.01169873]
[1745385150490,0.10132,93484.0,93469.0,0.01069873]
[1745385150699,0.10132,93484.0,93471.0,0.0106985]
[1745385151073,0.10132,93484.0,93468.0,0.22667579]
[1745385151283,0.2968601,93483.0,93470.0,0.002]
[1745385152212,0.2968601,93483.0,93470.0,0.003]
[1745385152604,0.2968601,93483.0,93470.0,0.002]
[1745385152806,0.2898601,93483.0,93470.0,0.003]
[1745385152985,0.2898601,93483.0,93470.0,0.001]
[1745385153416,0.2898601,93483.0,93471.0,0.001]
[1745385153852,0.2898601,93483.0,93470.0,0.001]
[1745385154392,0.2898601,93483.0,93470.0,0.002]
[1745385155003,0.2898601,93483.0,93470.0,0.001]
[1745385155304,0.2898601,93483.0,93471.0,0.001]
[1745385155526,0.21395883,93476.0,93470.0,0.001]
[1745385155728,0.0486,93480.0,93470.0,0.001]
[1745385155954,0.33295242,93479.0,93470.0,0.002]
[1745385156101,0.32225484,93479.0,93455.0,0.01070033]
[1745385156315,0.32225484,93479.0,93471.0,0.002]
[1745385156316,0.10830305,93479.0,93471.0,0.002]
[1745385156774,0.10830305,93479.0,93459.0,0.01069987]
[1745385157075,0.11030305,93479.0,93459.0,0.01069987]
[1745385157489,0.11030305,93479.0,93461.0,0.01069965]
[1745385158119,0.11030305,93479.0,93459.0,0.01069987]
[1745385158120,0.11030305,93479.0,93460.0,0.01069976]
[1745385158322,0.11030305,93479.0,93459.0,0.01069987]
[1745385158530,0.10830305,93479.0,93459.0,0.001]
[1745385158954,0.10830305,93479.0,93459.0,0.002]
[1745385159161,0.10830305,93479.0,93461.0,0.001]
[1745385160180,0.2898601,93478.0,93461.0,0.001]
[1745385160389,0.10130305,93477.0,93461.0,0.002]
[1745385160980,0.10130305,93477.0,93461.0,0.001]
[1745385161189,0.10130305,93477.0,93461.0,0.002]
[1745385161998,0.10130305,93477.0,93461.0,0.003]
[1745385162379,0.10130305,93477.0,93461.0,0.002]
[1745385162788,0.10130305,93477.0,93461.0,0.003]
[1745385164291,0.22467155,93470.0,93461.0,0.003]
[1745385164495,0.01069873,93469.0,93461.0,0.003]
[1745385164725,0.22467155,93470.0,93461.0,0.003]
[1745385164927,0.39816315,93468.0,93461.0,0.003]
[1745385165137,0.2898601,93467.0,93445.0,0.01155208]
[1745385165351,0.10830305,93466.0,93461.0,0.001]
[1745385166191,0.10830305,93466.0,93445.0,0.01155208]
[1745385166874,0.10830305,93466.0,93445.0,0.0008506]
[1745385168158,0.10430305,93466.0,93445.0,0.0008506]
[1745385168687,0.10130305,93466.0,93445.0,0.0008506]
[1745385168790,0.10130305,93466.0,93445.0,0.0028506]
[1745385169057,0.2898601,93465.0,93445.0,0.0028506]
[1745385169295,0.39816315,93465.0,93445.0,0.0028506]
[1745385169561,0.39816315,93465.0,93445.0,0.01355208]
[1745385169839,0.39816315,93465.0,93454.0,0.01070045]
[1745385169840,0.2898601,93465.0,93454.0,0.01070045]
[1745385170082,0.2898601,93465.0,93456.0,0.01070022]
[1745385170296,0.4051001,93465.0,93456.0,0.01070022]
[1745385170982,0.4051001,93465.0,93457.0,0.0107001]
[1745385171199,0.4051001,93465.0,93456.0,0.01070022]
[1745385171435,0.4051001,93465.0,93458.0,0.01069999]
[1745385172865,0.4071001,93465.0,93459.0,0.01069987]
[1745385173088,0.4071001,93465.0,93458.0,0.01069999]
[1745385173300,0.4051001,93465.0,93458.0,0.01069999]
[1745385173514,0.4081001,93465.0,93458.0,0.01069999]
[1745385173711,0.4081001,93465.0,93459.0,0.01069987]
[1745385173898,0.4081001,93465.0,93458.0,0.01069999]
[1745385174116,0.4081001,93465.0,93459.0,0.01069987]
[1745385174937,0.4081001,93465.0,93458.0,0.01069999]
[1745385175153,0.4081001,93465.0,93459.0,0.01069987]
[1745385175396,0.4051001,93465.0,93458.0,0.01069999]
[1745385175801,0.4001001,93465.0,93458.0,0.01069999]
[1745385176031,0.4001001,93465.0,93459.0,0.01069987]
[1745385176502,0.4001001,93465.0,93460.0,0.01069976]
[1745385176940,0.3981001,93465.0,93459.0,0.01069987]
[1745385177157,0.4011001,93465.0,93459.0,0.01069987]
[1745385177795,0.4031001,93465.0,93459.0,0.01069987]
[1745385178433,0.4011001,93465.0,93459.0,0.01069987]
[1745385178855,0.4041001,93465.0,93459.0,0.01069987]
[1745385179083,0.4041001,93465.0,93458.0,0.01069999]
[1745385179301,0.4011001,93465.0,93458.0,0.01069999]
[1745385179509,0.4041001,93465.0,93458.0,0.01069999]
[1745385180076,0.3981001,93465.0,93458.0,0.01069999]
[1745385180280,0.4001001,93465.0,93446.0,0.0485]
[1745385180532,0.4001001,93465.0,93452.0,0.01070068]
[1745385180533,0.2828601,93464.0,93452.0,0.01070068]
[1745385180765,0.28896548,93464.0,93451.0,0.01070079]
[1745385181443,0.28896548,93464.0,93446.0,0.01070136]
[1745385181651,0.28896548,93464.0,93451.0,0.01070079]
[1745385182292,0.28896548,93464.0,93446.0,0.342]
[1745385182501,0.28896548,93464.0,93446.0,0.35170136]
[1745385182714,0.28896548,93464.0,93446.0,0.002]
[1745385183360,0.28896548,93464.0,93448.0,0.01070113]
[1745385183564,0.28196548,93464.0,93448.0,0.01070113]
[1745385183847,0.28196548,93464.0,93447.0,0.01070125]
[1745385184057,0.28196548,93464.0,93448.0,0.01070113]
[1745385184276,0.28196548,93464.0,93449.0,0.01070102]
[1745385185143,0.28196548,93464.0,93461.0,0.01069965]
[1745385185588,0.28196548,93464.0,93462.0,0.21399071]
[1745385185799,0.2758601,93464.0,93462.0,0.21399071]
[1745385186005,0.00608406,93463.0,93462.0,0.21399071]
[1745385186673,0.003,93464.0,93462.0,0.21399071]
[1745385187599,0.11524,93475.0,93472.0,0.01069839]
[1745385188766,0.11724,93475.0,93472.0,0.01069839]
[1745385189023,0.11724,93475.0,93471.0,0.0106985]
[1745385189268,0.11724,93475.0,93472.0,0.01069839]
[1745385189499,0.00613759,93474.0,93472.0,0.01069839]
[1745385191072,0.00613759,93474.0,93471.0,0.0106985]
[1745385191320,0.003,93475.0,93472.0,0.01069839]
[1745385191593,0.2758601,93489.0,93483.0,0.01069713]
[1745385191594,0.11816,93486.0,93483.0,0.01069713]
[1745385191812,0.2758601,93485.0,93481.0,0.01069736]
[1745385192024,0.2758601,93485.0,93479.0,0.01069758]
[1745385192455,0.2758601,93485.0,93480.0,0.01069747]
[1745385192883,0.2758601,93485.0,93482.0,0.01069724]
[1745385193091,0.2758601,93485.0,93481.0,0.01069736]
[1745385193509,0.2758601,93485.0,93482.0,0.2246413]
[1745385193940,0.3939801,93485.0,93480.0,0.01069747]
[1745385194199,0.3959801,93485.0,93480.0,0.01069747]
[1745385194441,0.3979801,93485.0,93481.0,0.01069736]
[1745385194661,0.3939801,93485.0,93480.0,0.01069747]
[1745385194874,0.3989801,93485.0,93479.0,0.01069758]
[1745385195091,0.3989801,93485.0,93476.0,0.01069793]
[1745385195300,0.3989801,93485.0,93477.0,0.01069781]
[1745385195301,0.3939801,93485.0,93477.0,0.01069781]
[1745385195515,0.3959801,93485.0,93477.0,0.01069781]
[1745385195685,0.3969801,93485.0,93479.0,0.01069758]
[1745385196094,0.3979801,93485.0,93479.0,0.01069758]
[1745385196502,0.3979801,93485.0,93477.0,0.01069781]
[1745385196503,0.3979801,93485.0,93477.0,0.22465269]
[1745385196706,0.3949801,93485.0,93482.0,0.01069724]
[1745385197078,0.3959801,93485.0,93478.0,0.0106977]
[1745385197280,0.3959801,93485.0,93480.0,0.01069747]
[1745385197478,0.3939801,93485.0,93472.0,0.34]
[1745385197682,0.3949801,93485.0,93472.0,0.34]
[1745385197891,0.3949801,93485.0,93458.0,0.25899845]
[1745385197892,0.01069793,93476.0,93451.0,0.2140159]
[1745385198106,0.01069839,93472.0,93450.0,0.0589009]
[1745385198317,0.01069884,93468.0,93448.0,0.34]
[1745385198531,0.21397468,93469.0,93449.0,0.01070102]
[1745385198532,0.22642305,93467.0,93449.0,0.01070102]
[1745385198730,0.22642305,93467.0,93448.0,0.01070113]
[1745385198937,0.21942305,93467.0,93451.0,0.005]
[1745385199193,0.21942305,93467.0,93449.0,0.01070102]
[1745385199807,0.21942305,93467.0,93451.0,0.2140159]
[1745385200016,0.21942305,93467.0,93451.0,0.01070079]
[1745385200646,0.21942305,93467.0,93452.0,0.01070068]
[1745385200875,0.21942305,93467.0,93451.0,0.01270079]
[1745385201278,0.21942305,93467.0,93452.0,0.01070068]
[1745385201736,0.21942305,93467.0,93451.0,0.01170079]
[1745385201952,0.21942305,93467.0,93452.0,0.001]
[1745385202867,0.01069919,93465.0,93452.0,0.002]
[1745385203088,0.10830305,93465.0,93452.0,0.002]
[1745385203497,0.16820235,93464.0,93452.0,0.002]
[1745385203714,0.15750305,93464.0,93452.0,0.001]
[1745385203923,0.01069965,93461.0,93445.0,0.0008506]
[1745385204159,0.10830305,93460.0,93452.0,0.001]
[1745385204569,0.10830305,93460.0,93445.0,0.0008506]
[1745385204774,0.10830305,93460.0,93452.0,0.002]
[1745385205014,0.10830305,93460.0,93452.0,0.001]
[1745385205187,0.10830305,93460.0,93452.0,0.00113968]
[1745385205392,0.10930305,93460.0,93452.0,0.00113968]
[1745385205602,0.12000281,93460.0,93452.0,0.00113968]
[1745385206031,0.21400986,93454.0,93452.0,0.00013968]
[1745385206249,0.48296315,93453.0,93452.0,0.00013968]
[1745385206717,0.490504,93453.0,93452.0,0.00013968]
[1745385206853,0.491504,93453.0,93452.0,0.00013968]
[1745385207120,0.52138868,93453.0,93452.0,0.00013968]
[1745385207461,0.01070239,93437.0,93415.0,0.34]
[1745385207664,0.34,93435.0,93432.0,9.462e-05]
[1745385207871,0.44830305,93435.0,93432.0,9.462e-05]
[1745385208279,0.56859798,93433.0,93432.0,9.462e-05]
[1745385208482,0.67690103,93433.0,93432.0,9.462e-05]
[1745385208897,0.4628439,93433.0,93432.0,9.462e-05]
[1745385209280,0.5810039,93433.0,93432.0,9.462e-05]
[1745385209707,0.58916985,93433.0,93432.0,9.462e-05]
[1745385210044,0.58916985,93433.0,93432.0,0.00209462]
[1745385210253,0.574629,93433.0,93432.0,0.00209462]
[1745385210484,0.46632595,93433.0,93432.0,9.462e-05]
[1745385210683,0.45816,93433.0,93432.0,9.462e-05]
[1745385210980,0.46016,93433.0,93432.0,9.462e-05]
[1745385211190,0.46016,93433.0,93432.0,0.00109462]
[1745385211390,0.46016,93433.0,93432.0,9.462e-05]
[1745385211727,0.46116,93433.0,93432.0,9.462e-05]
[1745385212179,0.343,93433.0,93432.0,9.462e-05]
[1745385212384,0.3900201,93433.0,93432.0,9.462e-05]
[1745385213034,0.2718601,93433.0,93432.0,9.462e-05]
[1745385213240,1.11612113,93433.0,93432.0,9.462e-05]
[1745385213659,1.11512113,93433.0,93432.0,9.462e-05]
[1745385214066,1.11412113,93433.0,93432.0,9.462e-05]
[1745385214534,1.10712113,93433.0,93432.0,9.462e-05]
[1745385214940,1.11112113,93433.0,93432.0,9.462e-05]
[1745385215814,1.10712113,93433.0,93432.0,9.462e-05]
[1745385216244,0.774904,93433.0,93432.0,9.462e-05]
[1745385216458,0.898104,93433.0,93432.0,0.00109462]
[1745385216869,0.893104,93433.0,93432.0,9.462e-05]
[1745385217087,0.72016315,93433.0,93432.0,0.00109462]
[1745385217325,0.83836315,93433.0,93432.0,0.00109462]
[1745385217541,0.3900601,93433.0,93432.0,0.00109462]
[1745385217759,0.2718601,93433.0,93432.0,0.00109462]
[1745385218206,0.6118601,93433.0,93432.0,0.00109462]
[1745385218839,0.6078601,93433.0,93432.0,0.00109462]
[1745385219313,0.6028601,93433.0,93432.0,9.462e-05]
[1745385219741,0.6048601,93433.0,93432.0,9.462e-05]
[1745385220385,0.6058601,93433.0,93432.0,9.462e-05]
[1745385222174,0.5978601,93433.0,93432.0,9.462e-05]
[1745385225510,0.7176201,93433.0,93432.0,9.462e-05]
[1745385226581,0.3776201,93433.0,93432.0,9.462e-05]
[1745385229937,0.3706201,93433.0,93432.0,9.462e-05]
[1745385230340,0.3686201,93433.0,93432.0,9.462e-05]
[1745385230542,0.3696201,93433.0,93432.0,9.462e-05]
[1745385230879,0.3706201,93433.0,93432.0,9.462e-05]
[1745385233369,0.493464,93433.0,93432.0,9.462e-05]
[1745385235370,0.491464,93433.0,93432.0,9.462e-05]
[1745385235790,0.492464,93433.0,93432.0,9.462e-05]
[1745385235993,0.47792315,93433.0,93432.0,9.462e-05]
[1745385236190,0.35716315,93433.0,93432.0,9.462e-05]
[1745385236409,0.47792315,93433.0,93432.0,9.462e-05]
[1745385237757,0.47092315,93433.0,93432.0,9.462e-05]
[1745385238604,0.3626201,93433.0,93432.0,9.462e-05]
[1745385245409,0.3556201,93433.0,93432.0,9.462e-05]
[1745385253028,0.3486201,93433.0,93432.0,9.462e-05]
[1745385254615,0.45692315,93433.0,93432.0,9.462e-05]
[1745385255404,0.50462315,93433.0,93432.0,9.462e-05]
[1745385260845,0.49762315,93433.0,93432.0,9.462e-05]
[1745385261052,0.512164,93433.0,93432.0,9.462e-05]
[1745385262823,0.853164,93433.0,93432.0,9.462e-05]
[1745385263025,0.898764,93433.0,93432.0,9.462e-05]
[1745385263226,0.9287934,93433.0,93432.0,9.462e-05]
[1745385263457,0.898764,93433.0,93432.0,9.462e-05]
[1745385263627,0.92779109,93433.0,93432.0,9.462e-05]
[1745385264022,0.93379109,93433.0,93432.0,0.00109462]
[1745385264973,0.93279109,93433.0,93432.0,0.00109462]
[1745385265175,0.93679109,93433.0,93432.0,0.00109462]
[1745385265588,0.01070503,93414.0,93411.0,0.001]
[1745385265789,0.32856853,93413.0,93411.0,0.00146662]
[1745385265940,0.54267149,93413.0,93411.0,0.00146662]
[1745385266920,0.54267149,93413.0,93411.0,0.00246662]
[1745385268381,0.21326548,93412.0,93411.0,0.00246662]
[1745385268592,0.21326548,93412.0,93411.0,0.00146662]
[1745385268593,0.32156853,93412.0,93411.0,0.00146662]
[1745385268800,0.32156853,93412.0,93411.0,0.00246662]
[1745385269000,0.32156853,93412.0,93411.0,0.00446662]
[1745385269252,0.32156853,93412.0,93411.0,0.00146662]
[1745385269663,0.32256853,93412.0,93411.0,0.00146662]
[1745385270425,0.38630938,93412.0,93411.0,0.00146662]
[1745385270879,0.32256853,93412.0,93411.0,0.00146662]
[1745385271309,0.21426548,93412.0,93411.0,0.00146662]
[1745385271532,0.21326548,93412.0,93411.0,0.00146662]
[1745385271738,0.34266548,93412.0,93411.0,0.00146662]
[1745385271949,0.34666548,93412.0,93411.0,0.00246662]
[1745385272153,0.34866548,93412.0,93411.0,0.00246662]
[1745385272568,0.34266548,93412.0,93411.0,0.00146662]
[1745385272779,0.34366548,93412.0,93411.0,0.00146662]
[1745385273195,0.34266548,93412.0,93411.0,0.00146662]
[1745385273620,0.34366548,93412.0,93411.0,0.00146662]
[1745385273828,0.21426548,93412.0,93411.0,0.00146662]
[1745385274054,0.34366548,93412.0,93411.0,0.00146662]
[1745385275817,0.34366548,93412.0,93400.0,0.1714682]
[1745385276030,0.34366548,93412.0,93405.0,0.01070606]
[1745385276232,0.33666548,93412.0,93405.0,0.01070606]
[1745385276833,0.33566548,93412.0,93405.0,0.01070606]
[1745385277241,0.33566548,93412.0,93404.0,0.01070617]
[1745385277474,0.33566548,93412.0,93405.0,0.01070606]
[1745385278143,0.33666548,93412.0,93404.0,0.01070617]
[1745385278321,0.33666548,93412.0,93403.0,0.01070629]
[1745385278544,0.33566548,93412.0,93402.0,0.0107064]
[1745385278701,0.33566548,93412.0,93401.0,0.01070652]
[1745385278911,0.33566548,93412.0,93405.0,0.002]
[1745385279650,0.33566548,93412.0,93402.0,0.0107064]
[1745385279851,0.33566548,93412.0,93400.0,0.00011941]
[1745385280054,0.33566548,93412.0,93401.0,0.002]
[1745385280284,0.20626548,93411.0,93402.0,0.002]
[1745385280698,0.20626548,93411.0,93405.0,0.002]
[1745385280857,0.20626548,93411.0,93402.0,0.002]
[1745385281481,0.20626548,93411.0,93400.0,0.00011941]
[1745385281683,0.20626548,93411.0,93401.0,0.002]
[1745385282063,0.20626548,93411.0,93400.0,0.00011941]
[1745385282637,0.20626548,93411.0,93402.0,0.002]
[1745385283154,0.20626548,93411.0,93401.0,0.002]
[1745385283341,0.20626548,93411.0,93400.0,0.00211941]
[1745385283543,0.20626548,93411.0,93400.0,0.00511941]
[1745385283899,0.19926548,93411.0,93400.0,0.00211941]
[1745385284304,0.30756853,93411.0,93402.0,0.002]
[1745385284501,0.11900854,93410.0,93402.0,0.002]
[1745385284706,0.10830305,93410.0,93400.0,0.00011941]
[1745385285356,0.11900854,93410.0,93402.0,0.003]
[1745385285547,0.01070583,93407.0,93402.0,0.003]
[1745385285758,0.11900854,93410.0,93400.0,0.00011941]
[1745385285954,0.10830305,93410.0,93400.0,0.00311941]
[1745385286284,0.19926548,93409.0,93400.0,0.00611941]
[1745385286497,0.19926548,93409.0,93400.0,0.00311941]
[1745385286731,0.19926548,93409.0,93402.0,0.002]
[1745385286927,0.19926548,93409.0,93400.0,0.00311941]
[1745385287189,0.10830305,93408.0,93400.0,0.00311941]
[1745385287368,0.01070606,93405.0,93400.0,0.00311941]
[1745385287592,0.01070606,93405.0,93400.0,0.00011941]
[1745385287593,0.10830305,93404.0,93400.0,0.00011941]
[1745385287797,0.10830305,93404.0,93400.0,0.00311941]
[1745385288217,0.10830305,93404.0,93400.0,0.00011941]
[1745385288427,0.10830305,93404.0,93402.0,0.002]
[1745385289728,0.10830305,93404.0,93400.0,0.00211941]
[1745385290793,0.10930305,93404.0,93402.0,0.002]
[1745385291394,0.10930305,93404.0,93400.0,0.00211941]
[1745385291395,0.10830305,93404.0,93400.0,0.00211941]
[1745385291593,0.10930305,93404.0,93400.0,0.00511941]
[1745385292037,0.19926548,93403.0,93400.0,0.00511941]
[1745385292215,0.19226548,93403.0,93400.0,0.00211941]
[1745385292420,0.19226548,93403.0,93402.0,0.002]
[1745385292866,0.19226548,93403.0,93394.0,0.2141455]
[1745385293039,0.32166548,93403.0,93402.0,0.001]
[1745385293701,0.32166548,93403.0,93402.0,0.002]
[1745385293876,0.32266548,93403.0,93402.0,0.002]
[1745385294432,0.32166548,93403.0,93402.0,0.002]
[1745385294637,0.32166548,93403.0,93402.0,0.003]
[1745385298233,0.32166548,93403.0,93392.0,0.0510092]
[1745385298438,0.32166548,93403.0,93395.0,0.01070721]
[1745385298683,0.32166548,93403.0,93392.0,0.06171675]
[1745385299002,0.32166548,93403.0,93393.0,0.01070744]
[1745385299407,0.32166548,93403.0,93394.0,0.01070732]
[1745385299955,0.32166548,93403.0,93391.0,0.01070766]
[1745385299956,0.31466548,93403.0,93395.0,0.003]
[1745385300169,0.31466548,93403.0,93396.0,0.01070709]
[1745385300372,0.31566548,93403.0,93396.0,0.01070709]